fUST/lending_fUST_20240105
["ID","MTS","AMOUNT","RATE_DAILY","PERIOD"]
[310152250,1704384645065,-513.00256286,0.0003863,7]
[310152252,1704384645075,-500.0,0.0003863,7]
[310152254,1704384645084,-500.0,0.0003863,7]
[310152256,1704384645093,-7692.77,0.0003863,7]
[310152258,1704384645102,-514.84574654,0.0003863,7]
[310152260,1704384645111,-196.02475645,0.0003863,7]
[310152262,1704384645120,-500.0,0.0003863,7]
[310152264,1704384645129,-500.0,0.0003863,7]
[310152266,1704384645138,-500.0,0.0003863,7]
[310152268,1704384645152,-836.7,0.0003863,7]
[310152270,1704384645162,-501.05172239,0.0003863,7]
[310152272,1704384645171,-785.56,0.0003863,7]
[310152274,1704384645180,-500.0,0.0003863,7]
[310152276,1704384645189,-500.0,0.0003863,7]
[310152278,1704384645198,-1229.89,0.0003863,7]
[310152280,1704384645208,-524.36763937,0.0003863,7]
[310152282,1704384645217,-2378.79,0.0003863,7]
[310152284,1704384645226,-1215.01,0.0003863,7]
[310152286,1704384645235,-601.84,0.0003863,7]
[310152288,1704384645244,-500.0,0.0003863,7]
[310152290,1704384645253,-807.95,0.0003863,7]
[310152292,1704384645262,-500.0,0.0003863,7]
[310152294,1704384645271,-500.0,0.0003863,7]
[310152296,1704384645280,-500.0,0.0003863,7]
[310152298,1704384645289,-3807.74,0.0003863,7]
[310152300,1704384645298,-500.0,0.0003863,7]
[310152301,1704384645310,-500.0,0.0003863,7]
[310152303,1704384645320,-500.0,0.0003863,2]
[310152306,1704384645330,-500.0,0.0003863,7]
[310152308,1704384645341,-500.0,0.0003863,7]
[310152310,1704384645350,-500.0,0.0003863,7]
[310152312,1704384645359,-5000.0,0.0003863,10]
[310152314,1704384645368,-151.0,0.0003863,2]
[310152316,1704384645377,-151.0,0.0003863,2]
[310152318,1704384645388,-250.38966,0.0003863,2]
[310152320,1704384645396,-250.38966,0.0003863,2]
[310152322,1704384645406,-229.50322,0.0003863,2]
[310152324,1704384645415,-839.0,0.0003874,2]
[310152326,1704384645425,-166.71051213,0.00038781,4]
[310152328,1704384645435,-515.82,0.00038904,7]
[310152330,1704384645444,-500.0,0.00038904,2]
[310152331,1704384645454,-500.0,0.00038904,7]
[310152333,1704384645464,-500.0,0.00038904,7]
[310152335,1704384645473,-500.0,0.00038904,7]
[310152337,1704384645483,-500.0,0.00038904,7]
[310152340,1704384645492,-500.0,0.00038904,7]
[310152341,1704384645502,-500.0,0.00038904,7]
[310152343,1704384645511,-501.81811394,0.00038904,7]
[310152345,1704384645520,-500.0,0.00038904,7]
[310152347,1704384645530,-500.0,0.00038904,7]
[310152350,1704384645539,-500.0,0.00038904,7]
[310152352,1704384645548,-500.0,0.00038904,7]
[310152353,1704384645559,-611.55320608,0.00038904,7]
[310152355,1704384645569,-500.0,0.00038904,7]
[310152357,1704384645578,-548.88,0.00038904,7]
[310152359,1704384645587,-500.0,0.00038904,7]
[310152361,1704384645597,-500.0,0.00038904,7]
[310152363,1704384645607,-234.79234472,0.00038904,7]
[310152365,1704384645616,-500.0,0.00038904,7]
[310152367,1704384645625,-500.0,0.00038904,7]
[310152370,1704384645635,-416.40934462,0.00038904,7]
[310152372,1704384645645,-501.34867279,0.00038904,7]
[310152373,1704384645654,-500.0,0.00038904,7]
[310152375,1704384645665,-500.0,0.00038904,7]
[310152377,1704384645676,-500.0,0.00038904,7]
[310152389,1704384645776,-186.45534578,0.00038904,7]
[310152392,1704384645786,-500.0,0.00038904,7]
[310152395,1704384645794,-1029.28,0.00038904,7]
[310152397,1704384645805,-500.0,0.00038904,7]
[310152399,1704384645814,-500.0,0.00038904,7]
[310152401,1704384645823,-500.0,0.00038904,7]
[310152403,1704384645832,-205.83409689,0.00038904,7]
[310152405,1704384645841,-928.48,0.00038904,7]
[310152407,1704384645851,-500.0,0.00038904,7]
[310152410,1704384645860,-930.59,0.00038904,7]
[310152412,1704384645868,-500.0,0.00038904,7]
[310152415,1704384645878,-500.0,0.00038904,7]
[310152419,1704384645887,-98.39819544,0.00038904,7]
[310152422,1704384645901,-409.23905883,0.00038904,7]
[310152424,1704384645910,-500.0,0.00038904,7]
[310152426,1704384645920,-773.72,0.00038904,7]
[310152428,1704384645929,-500.0,0.00038904,7]
[310152430,1704384645939,-502.84597761,0.00038904,7]
[310152432,1704384645950,-500.0,0.00038904,7]
[310152434,1704384645959,-500.0,0.00038904,7]
[310152436,1704384645968,-500.0,0.00038904,7]
[310152439,1704384645978,-500.0,0.00038904,7]
[310152442,1704384645987,-500.0,0.00038904,7]
[310152444,1704384645996,-46721.58,0.00038904,3]
[310152446,1704384646005,-512.51115803,0.00038904,7]
[310152448,1704384646014,-500.0,0.00038904,7]
[310152450,1704384646023,-541.21408276,0.00038904,7]
[310152452,1704384646032,-500.0,0.00038904,7]
[310152454,1704384646042,-500.0,0.00038904,7]
[310152456,1704384646054,-517.28879041,0.00038904,7]
[310152458,1704384646063,-503.88246748,0.00038904,7]
[310152460,1704384646073,-575.08,0.00038904,2]
[310152462,1704384646082,-933.65,0.00038904,7]
[310152464,1704384646091,-500.0,0.00038904,7]
[310152466,1704384646100,-500.0,0.00038904,7]
[310152468,1704384646109,-500.0,0.00038904,7]
[310152470,1704384646118,-521.25997661,0.00038904,7]
[310152472,1704384646128,-500.0,0.00038904,7]
[310152474,1704384646137,-500.0,0.00038904,7]
[310152476,1704384646146,-533.23208133,0.00038904,7]
[310152478,1704384646155,-219.32438583,0.00038904,7]
[310152480,1704384646164,-500.0,0.00038904,7]
[310152482,1704384646173,-500.0,0.00038904,7]
[310152484,1704384646183,-500.0,0.00038904,7]
[310152486,1704384646192,-1475.02,0.00038904,7]
[310152488,1704384646201,-500.0,0.00038904,7]
[310152490,1704384646211,-540.21865481,0.00038904,7]
[310152492,1704384646221,-500.0,0.00038904,7]
[310152494,1704384646230,-500.0,0.00038904,7]
[310152496,1704384646239,-525.27283003,0.00038904,7]
[310152498,1704384646248,-502.95259749,0.00038904,7]
[310152499,1704384646258,-1245.07,0.00038904,7]
[310152501,1704384646267,-527.64080947,0.00038904,7]
[310152503,1704384646277,-175.92039455,0.00038904,2]
[310152505,1704384646286,-500.0,0.00038904,7]
[310152507,1704384646295,-500.0,0.00038904,7]
[310152508,1704384646308,-500.0,0.00038904,7]
[310152510,1704384646317,-500.0,0.00038904,7]
[310152512,1704384646327,-500.0,0.00038904,7]
[310152514,1704384646336,-726.47,0.00038904,7]
[310152516,1704384646346,-500.0,0.00038904,7]
[310152518,1704384646356,-2214.33,0.00038904,7]
[310152520,1704384646370,-500.0,0.00038904,7]
[310152522,1704384646379,-500.0,0.00038904,7]
[310152524,1704384646389,-500.0,0.00038904,7]
[310152526,1704384646398,-500.0,0.00038904,7]
[310152528,1704384646408,-998.67,0.00038904,7]
[310152530,1704384646417,-500.0,0.00038904,7]
[310152532,1704384646426,-500.0,0.00038904,7]
[310152534,1704384646439,-500.0,0.00038904,7]
[310152536,1704384646449,-1389.21,0.00038904,7]
[310152538,1704384646458,-500.0,0.00038904,7]
[310152540,1704384646468,-500.0,0.00038904,7]
[310152542,1704384646477,-500.0,0.00038904,7]
[310152544,1704384646486,-500.0,0.00038904,7]
[310152546,1704384646495,-596.820312,0.00038904,7]
[310152548,1704384646503,-500.0,0.00038904,7]
[310152550,1704384646512,-500.0,0.00038904,7]
[310152552,1704384646521,-500.0,0.00038904,7]
[310152554,1704384646530,-500.0,0.00038904,7]
[310152556,1704384646539,-504.28,0.00038904,7]
[310152558,1704384646550,-500.0,0.00038904,7]
[310152560,1704384646560,-500.0,0.00038904,7]
[310152562,1704384646570,-676.9,0.00038904,7]
[310152563,1704384646579,-500.0,0.00038904,7]
[310152565,1704384646588,-500.0,0.00038904,7]
[310152567,1704384646597,-500.0,0.00038904,7]
[310152569,1704384646607,-500.0,0.00038904,7]
[310152571,1704384646615,-500.0,0.00038904,7]
[310152573,1704384646625,-500.0,0.00038904,7]
[310152575,1704384646635,-500.0,0.00038904,7]
[310152577,1704384646644,-500.0,0.00038904,7]
[310152579,1704384646654,-500.0,0.00038904,7]
[310152581,1704384646663,-1000.0,0.00038904,5]
[310152583,1704384646672,-500.0,0.00038904,7]
[310152585,1704384646681,-813.36,0.00038904,7]
[310152587,1704384646690,-500.0,0.00038904,7]
[310152589,1704384646699,-500.0,0.00038904,7]
[310152591,1704384646708,-602.61,0.00038904,7]
[310152593,1704384646718,-500.0,0.00038904,7]
[310152595,1704384646727,-500.0,0.00038904,7]
[310152597,1704384646735,-293.33550958,0.00038904,7]
[310152599,1704384646745,-590.87,0.00038904,7]
[310152600,1704384646754,-560.84728984,0.00038904,7]
[310152602,1704384646763,-500.0,0.00038904,7]
[310152604,1704384646772,-338.25803684,0.00038904,7]
[310152606,1704384646781,-319.51347752,0.00038904,7]
[310152608,1704384646791,-500.0,0.00038904,7]
[310152610,1704384646800,-500.0,0.00038904,7]
[310152612,1704384646810,-500.0,0.00038904,7]
[310152614,1704384646819,-502.2681211,0.00038904,7]
[310152616,1704384646829,-500.0,0.00038904,7]
[310152618,1704384646839,-500.0,0.00038904,7]
[310152620,1704384646848,-500.0,0.00038904,7]
[310152622,1704384646857,-500.0,0.00038904,7]
[310152624,1704384646866,-500.0,0.00038904,7]
[310152626,1704384646875,-500.0,0.00038904,7]
[310152628,1704384646885,-500.0,0.00038904,7]
[310152630,1704384646894,-624.2989346,0.00038904,7]
[310152632,1704384646903,-500.0,0.00038904,7]
[310152634,1704384646912,-500.0,0.00038904,7]
[310152636,1704384646921,-500.0,0.00038904,7]
[310152638,1704384646931,-500.0,0.00038904,7]
[310152640,1704384646940,-508.06817996,0.00038904,7]
[310152642,1704384646949,-195.19724746,0.00038904,7]
[310152644,1704384646959,-500.0,0.00038904,7]
[310152646,1704384646968,-500.0,0.00038904,7]
[310152648,1704384646977,-936.46,0.00038904,7]
[310152650,1704384646986,-500.0,0.00038904,7]
[310152652,1704384646997,-500.0,0.00038904,7]
[310152654,1704384647006,-500.0,0.00038904,7]
[310152656,1704384647015,-500.0,0.00038904,7]
[310152658,1704384647024,-2773.84,0.00038904,7]
[310152660,1704384647033,-516.60431765,0.00038904,7]
[310152662,1704384647043,-500.0,0.00038904,7]
[310152664,1704384647054,-938.14,0.00038904,7]
[310152666,1704384647063,-500.0,0.00038904,7]
[310152668,1704384647072,-500.0,0.00038904,7]
[310152670,1704384647081,-500.0,0.00038904,7]
[310152672,1704384647091,-500.0,0.00038904,7]
[310152673,1704384647100,-500.0,0.00038904,7]
[310152675,1704384647111,-500.0,0.00038904,7]
[310152677,1704384647120,-500.0,0.00038904,7]
[310152679,1704384647130,-500.0,0.00038904,7]
[310152681,1704384647140,-500.0,0.00038904,7]
[310152683,1704384647150,-500.0,0.00038904,7]
[310152685,1704384647159,-500.0,0.00038904,7]
[310152687,1704384647168,-500.0,0.00038904,7]
[310152689,1704384647178,-345.03964036,0.00038904,7]
[310152691,1704384647187,-500.0,0.00038904,7]
[310152693,1704384647197,-500.0,0.00038904,7]
[310152695,1704384647206,-500.0,0.00038904,7]
[310152697,1704384647215,-500.0,0.00038904,7]
[310152699,1704384647225,-7189.88,0.00038904,7]
[310152701,1704384647234,-500.0,0.00038904,7]
[310152703,1704384647243,-500.0,0.00038904,7]
[310152705,1704384647253,-516.47422852,0.00038904,30]
[310152707,1704384647263,-500.0,0.00038904,7]
[310152709,1704384647273,-500.0,0.00038904,7]
[310152711,1704384647282,-500.0,0.00038904,7]
[310152713,1704384647291,-3714.82,0.00038904,7]
[310152715,1704384647300,-500.0,0.00038904,7]
[310152717,1704384647311,-2622.15,0.00038904,7]
[310152719,1704384647321,-500.0,0.00038904,7]
[310152721,1704384647330,-1640.87,0.00038904,7]
[310152723,1704384647340,-1326.91,0.00038904,7]
[310152725,1704384647349,-500.0,0.00038904,7]
[310152727,1704384647358,-909.53,0.00038904,7]
[310152729,1704384647368,-506.00434185,0.00038904,7]
[310152731,1704384647376,-500.0,0.00038904,7]
[310152733,1704384647386,-500.0,0.00038904,7]
[310152735,1704384647395,-3757.04,0.00038904,7]
[310152736,1704384647404,-503.21043275,0.00038904,7]
[310152738,1704384647414,-500.0,0.00038904,7]
[310152740,1704384647423,-500.0,0.00038904,7]
[310152742,1704384647432,-219.00598534,0.00038904,7]
[310152744,1704384647442,-244.19954149,0.00038904,7]
[310152746,1704384647451,-500.0,0.00038904,7]
[310152748,1704384647461,-500.0,0.00038904,7]
[310152750,1704384647471,-500.0,0.00038904,7]
[310152752,1704384647480,-500.0,0.00038904,7]
[310152754,1704384647490,-500.0,0.00038904,7]
[310152756,1704384647499,-500.0,0.00038904,7]
[310152758,1704384647508,-728.9,0.00038904,7]
[310152760,1704384647517,-945.75,0.00038904,7]
[310152762,1704384647527,-500.0,0.00038904,7]
[310152764,1704384647536,-500.0,0.00038904,7]
[310152766,1704384647545,-571.84505234,0.00038904,7]
[310152768,1704384647555,-500.0,0.00038904,7]
[310152770,1704384647565,-3363.18,0.00038904,7]
[310152772,1704384647574,-867.88,0.00038904,7]
[310152774,1704384647584,-1635.96,0.00038904,7]
[310152776,1704384647594,-500.0,0.00038904,7]
[310152777,1704384647603,-500.0,0.00038904,7]
[310152780,1704384647613,-500.0,0.00038904,7]
[310152781,1704384647622,-12109.38,0.00038904,7]
[310152783,1704384647632,-500.0,0.00038904,7]
[310152785,1704384647641,-500.0,0.00038904,7]
[310152788,1704384647651,-3889.06,0.00038904,7]
[310152789,1704384647661,-500.0,0.00038904,7]
[310152792,1704384647672,-500.0,0.00038904,7]
[310152793,1704384647681,-500.0,0.00038904,7]
[310152795,1704384647691,-500.0,0.00038904,7]
[310152797,1704384647700,-500.0,0.00038904,7]
[310152799,1704384647710,-260.46089387,0.00038904,7]
[310152801,1704384647719,-501.35968135,0.00038904,7]
[310152809,1704384647810,-500.0,0.00038904,7]
[310152810,1704384647820,-500.0,0.00038904,7]
[310152811,1704384647829,-777.49,0.00038904,7]
[310152812,1704384647838,-500.0,0.00038904,7]
[310152813,1704384647847,-500.0,0.00038904,7]
[310152814,1704384647856,-28505.95,0.00038904,7]
[310152815,1704384647865,-500.0,0.00038904,7]
[310152816,1704384647876,-240.17936533,0.00038904,7]
[310152817,1704384647885,-560.69836054,0.00038904,7]
[310152818,1704384647894,-500.0,0.00038904,7]
[310152819,1704384647903,-421.75949392,0.00038904,7]
[310152820,1704384647912,-500.0,0.00038904,7]
[310152821,1704384647924,-311.17754081,0.00038904,7]
[310152822,1704384647932,-500.0,0.00038904,7]
[310152823,1704384647941,-500.0,0.00038904,7]
[310152824,1704384647950,-500.0,0.00038904,7]
[310152825,1704384647959,-500.0,0.00038904,7]
[310152826,1704384647967,-500.0,0.00038904,7]
[310152827,1704384647976,-500.0,0.00038904,7]
[310152828,1704384647985,-500.0,0.00038904,7]
[310152829,1704384647994,-500.0,0.00038904,7]
[310152830,1704384648003,-500.0,0.00038904,7]
[310152831,1704384648012,-500.0,0.00038904,7]
[310152832,1704384648021,-500.0,0.00038904,7]
[310152833,1704384648030,-7692.77,0.00038904,7]
[310152834,1704384648044,-500.0,0.00038904,7]
[310152835,1704384648054,-500.0,0.00038904,7]
[310152836,1704384648064,-500.0,0.00038904,7]
[310152837,1704384648072,-500.0,0.00038904,7]
[310152838,1704384648082,-836.7,0.00038904,7]
[310152839,1704384648091,-785.56,0.00038904,7]
[310152840,1704384648101,-500.0,0.00038904,7]
[310152841,1704384648110,-500.0,0.00038904,7]
[310152842,1704384648119,-1229.89,0.00038904,7]
[310152843,1704384648129,-2378.79,0.00038904,7]
[310152844,1704384648138,-1215.01,0.00038904,7]
[310152845,1704384648147,-601.84,0.00038904,7]
[310152846,1704384648157,-500.0,0.00038904,7]
[310152847,1704384648167,-807.95,0.00038904,7]
[310152848,1704384648176,-500.0,0.00038904,7]
[310152849,1704384648186,-500.0,0.00038904,7]
[310152850,1704384648195,-500.0,0.00038904,7]
[310152851,1704384648205,-3807.74,0.00038904,7]
[310152852,1704384648215,-500.0,0.00038904,7]
[310152853,1704384648225,-500.0,0.00038904,7]
[310152854,1704384648234,-500.0,0.00038904,2]
[310152855,1704384648244,-500.0,0.00038904,7]
[310152856,1704384648253,-500.0,0.00038904,7]
[310152857,1704384648262,-500.0,0.00038904,7]
[310152858,1704384648271,-151.0,0.00038904,2]
[310152859,1704384648281,-151.0,0.00038904,2]
[310152860,1704384648290,-250.38966,0.00038904,2]
[310152861,1704384648298,-250.38966,0.00038904,2]
[310152862,1704384648311,-229.50322,0.00038904,2]
[310152863,1704384648319,-150.77949282,0.00038954,2]
[310152864,1704384648329,-154.84515485,0.00039,4]
[310152865,1704384648339,-1000.0,0.00039,39]
[310152866,1704384648348,-1014.50906718,0.00039,10]
[310152867,1704384648358,-2032.89861869,0.00039,2]
[310152868,1704384648371,-155.0,0.00039,2]
[310152869,1704384648381,-20406.0,0.00039,2]
[310152870,1704384648390,-500.0,0.00039,7]
[310152871,1704384648399,-1205.9498852,0.00039105,30]
[310152872,1704384648410,-168.0,0.00039148,60]
[310152873,1704384648419,-298.0,0.00039148,7]
[310152874,1704384648429,-2770.0,0.00039148,60]
[310152875,1704384648441,-150.0,0.0003915,60]
[310152876,1704384648450,-168.0,0.00039158,60]
[310152877,1704384648460,-298.0,0.00039158,7]
[310152878,1704384648469,-2770.0,0.00039158,60]
[310152879,1704384648478,-180.83,0.00039168,60]
[310152880,1704384648488,-168.0,0.00039168,60]
[310152881,1704384648497,-298.0,0.00039168,7]
[310152882,1704384648506,-2770.0,0.00039168,60]
[310152883,1704384648514,-5930.79103149,0.00039177,2]
[310152884,1704384648523,-515.82,0.00039178,7]
[310152885,1704384648533,-500.0,0.00039178,2]
[310152886,1704384648542,-644.06871811,0.00039178,7]
[310152887,1704384648551,-500.0,0.00039178,7]
[310152888,1704384648562,-500.0,0.00039178,7]
[310152889,1704384648571,-500.0,0.00039178,7]
[310152890,1704384648581,-500.0,0.00039178,7]
[310152891,1704384648591,-500.0,0.00039178,7]
[310152893,1704384648600,-500.0,0.00039178,7]
[310152894,1704384648609,-500.0,0.00039178,7]
[310152895,1704384648618,-500.0,0.00039178,7]
[310152896,1704384648628,-500.0,0.00039178,7]
[310152897,1704384648637,-500.0,0.00039178,7]
[310152898,1704384648647,-548.88,0.00039178,7]
[310152899,1704384648656,-500.0,0.00039178,7]
[310152900,1704384648666,-500.0,0.00039178,7]
[310152901,1704384648675,-500.0,0.00039178,7]
[310152902,1704384648685,-500.0,0.00039178,7]
[310152904,1704384648693,-500.0,0.00039178,7]
[310152905,1704384648703,-512.05962348,0.00039178,7]
[310152907,1704384648713,-500.0,0.00039178,7]
[310152909,1704384648722,-487.81165154,0.00039178,7]
[310152911,1704384648731,-1029.28,0.00039178,7]
[310152912,1704384648741,-500.0,0.00039178,7]
[310152914,1704384648750,-500.0,0.00039178,7]
[310152916,1704384648759,-500.0,0.00039178,7]
[310152917,1704384648768,-928.48,0.00039178,7]
[310152919,1704384648777,-553.27752338,0.00039178,7]
[310152921,1704384648786,-930.59,0.00039178,7]
[310152923,1704384648795,-500.0,0.00039178,7]
[310152924,1704384648805,-500.0,0.00039178,7]
[310152925,1704384648816,-500.0,0.00039178,7]
[310152926,1704384648825,-773.72,0.00039178,7]
[310152927,1704384648835,-500.0,0.00039178,7]
[310152928,1704384648844,-501.93397439,0.00039178,7]
[310152929,1704384648853,-500.0,0.00039178,7]
[310152930,1704384648863,-500.0,0.00039178,7]
[310152931,1704384648872,-500.10326256,0.00039178,7]
[310152932,1704384648882,-500.0,0.00039178,7]
[310152933,1704384648891,-46721.58,0.00039178,3]
[310152934,1704384648900,-500.0,0.00039178,7]
[310152935,1704384648910,-500.0,0.00039178,7]
[310152936,1704384648919,-500.0,0.00039178,7]
[310152937,1704384648929,-575.08,0.00039178,2]
[310152938,1704384648939,-933.65,0.00039178,7]
[310152939,1704384648948,-572.89415286,0.00039178,7]
[310152940,1704384648957,-500.0,0.00039178,7]
[310152941,1704384648967,-500.0,0.00039178,7]
[310152942,1704384648976,-500.0,0.00039178,7]
[310152943,1704384648986,-500.0,0.00039178,7]
[310152944,1704384648995,-500.0,0.00039178,7]
[310152945,1704384649004,-500.0,0.00039178,7]
[310152946,1704384649013,-500.0,0.00039178,7]
[310152947,1704384649023,-1475.02,0.00039178,7]
[310152948,1704384649032,-505.60017931,0.00039178,7]
[310152949,1704384649042,-500.0,0.00039178,7]
[310152950,1704384649051,-500.0,0.00039178,7]
[310152951,1704384649062,-1245.07,0.00039178,7]
[310152952,1704384649072,-500.0,0.00039178,7]
[310152953,1704384649081,-511.93800855,0.00039178,7]
[310152954,1704384649090,-500.0,0.00039178,7]
[310152955,1704384649099,-500.0,0.00039178,7]
[310152956,1704384649108,-604.55351256,0.00039178,7]
[310152957,1704384649118,-726.47,0.00039178,7]
[310152958,1704384649127,-629.26352752,0.00039178,7]
[310152959,1704384649137,-2214.33,0.00039178,7]
[310152960,1704384649146,-550.0,0.00039178,7]
[310152961,1704384649155,-500.0,0.00039178,7]
[310152962,1704384649165,-500.0,0.00039178,7]
[310152963,1704384649175,-500.0,0.00039178,7]
[310152964,1704384649184,-998.67,0.00039178,7]
[310152965,1704384649195,-500.0,0.00039178,7]
[310152966,1704384649205,-500.0,0.00039178,7]
[310152967,1704384649215,-500.0,0.00039178,7]
[310152968,1704384649224,-1389.21,0.00039178,7]
[310152969,1704384649234,-500.0,0.00039178,7]
[310152970,1704384649244,-500.0,0.00039178,7]
[310152971,1704384649253,-463.09863253,0.00039178,7]
[310152972,1704384649263,-211.99583497,0.00039178,7]
[310152973,1704384649272,-500.0,0.00039178,7]
[310152974,1704384649282,-500.0,0.00039178,7]
[310152975,1704384649292,-500.0,0.00039178,7]
[310152976,1704384649301,-530.19501161,0.00039178,7]
[310152977,1704384649312,-504.28,0.00039178,7]
[310152978,1704384649321,-274.27195752,0.00039178,7]
[310152979,1704384649331,-563.33939709,0.00039178,7]
[310152980,1704384649340,-676.9,0.00039178,7]
[310152981,1704384649350,-500.0,0.00039178,7]
[310152982,1704384649360,-500.0,0.00039178,7]
[310152983,1704384649370,-197.34080759,0.00039178,7]
[310152984,1704384649379,-500.0,0.00039178,7]
[310152985,1704384649389,-500.0,0.00039178,7]
[310152986,1704384649400,-500.0,0.00039178,7]
[310152987,1704384649410,-500.0,0.00039178,7]
[310152988,1704384649419,-500.0,0.00039178,7]
[310152989,1704384649428,-182.10087568,0.00039178,7]
[310152990,1704384649438,-193.75753222,0.00039178,5]
[310152991,1704384649447,-514.66008108,0.00039178,7]
[310152992,1704384649456,-813.36,0.00039178,7]
[310152993,1704384649466,-500.0,0.00039178,7]
[310152994,1704384649475,-500.0,0.00039178,7]
[310152995,1704384649484,-602.61,0.00039178,7]
[310152996,1704384649493,-500.0,0.00039178,7]
[310152997,1704384649503,-500.0,0.00039178,7]
[310152998,1704384649523,-590.87,0.00039178,7]
[310152999,1704384649535,-500.0,0.00039178,7]
[310153000,1704384649545,-500.0,0.00039178,7]
[310153001,1704384649556,-500.0,0.00039178,7]
[310153002,1704384649565,-500.0,0.00039178,7]
[310153003,1704384649575,-500.0,0.00039178,7]
[310153004,1704384649585,-500.0,0.00039178,7]
[310153006,1704384649595,-500.0,0.00039178,7]
[310153008,1704384649605,-500.0,0.00039178,7]
[310153010,1704384649615,-500.0,0.00039178,7]
[310153017,1704384649625,-500.0,0.00039178,7]
[310153018,1704384649760,-223.26616222,0.00039178,7]
[310153019,1704384649770,-500.0,0.00039178,7]
[310153020,1704384649778,-500.0,0.00039178,7]
[310153021,1704384649787,-500.0,0.00039178,7]
[310153022,1704384649796,-500.0,0.00039178,7]
[310153024,1704384649806,-500.0,0.00039178,7]
[310153026,1704384649815,-516.93241572,0.00039178,7]
[310153027,1704384649825,-936.46,0.00039178,7]
[310153028,1704384649834,-500.0,0.00039178,7]
[310153029,1704384649843,-531.22656994,0.00039178,7]
[310153030,1704384649852,-500.0,0.00039178,7]
[310153031,1704384649861,-500.0,0.00039178,7]
[310153032,1704384649871,-2773.84,0.00039178,7]
[310153033,1704384649880,-500.0,0.00039178,7]
[310153034,1704384649889,-938.14,0.00039178,7]
[310153035,1704384649899,-407.33396314,0.00039178,7]
[310153036,1704384649908,-500.0,0.00039178,7]
[310153037,1704384649918,-500.0,0.00039178,7]
[310153038,1704384649927,-500.0,0.00039178,7]
[310153039,1704384649936,-500.0,0.00039178,7]
[310153040,1704384649946,-500.0,0.00039178,7]
[310153041,1704384649955,-500.0,0.00039178,7]
[310153042,1704384649964,-500.0,0.00039178,7]
[310153043,1704384649973,-500.0,0.00039178,7]
[310153044,1704384649982,-500.0,0.00039178,7]
[310153045,1704384649991,-500.0,0.00039178,7]
[310153046,1704384650000,-500.0,0.00039178,7]
[310153047,1704384650010,-500.0,0.00039178,7]
[310153048,1704384650019,-500.0,0.00039178,7]
[310153049,1704384650028,-500.0,0.00039178,7]
[310153050,1704384650037,-7189.88,0.00039178,7]
[310153051,1704384650047,-500.0,0.00039178,7]
[310153052,1704384650058,-500.0,0.00039178,7]
[310153053,1704384650067,-500.0,0.00039178,7]
[310153054,1704384650077,-500.0,0.00039178,7]
[310153055,1704384650088,-500.0,0.00039178,7]
[310153056,1704384650097,-3714.82,0.00039178,7]
[310153057,1704384650107,-500.0,0.00039178,7]
[310153058,1704384650116,-2622.15,0.00039178,7]